[Event "Titled Tuesday Blitz December 13 Early 2022"]
[White "Redzisz, Michal"]
[Black "Itkis, Boris"]
[WhiteFideId "21816107"]
[BlackFideId "1209167"]
[WhiteElo "2136"]
[BlackElo "2216"]
[Result "1-0"]
[Round "05"]
[TimeControl "180+1"]
[Date "2022.12.14"]
[WhiteClock "0:00:26"]
[BlackClock "0:00:09"]

1. e4 {[%clk 0:03:00]}  c5 {[%clk 0:02:47]} 2. Nf3 {[%clk 0:03:01]}  Nc6 {[%clk 0:02:46]} 3. d4 {[%clk 0:03:01]}  cxd4 {[%clk 0:02:46]} 4. Nxd4 {[%clk 0:03:02]}  g6 {[%clk 0:02:47]} 5. c4 {[%clk 0:03:01]}  Bg7 {[%clk 0:02:46]} 6. Be3 {[%clk 0:03:01]}  Nf6 {[%clk 0:02:46]} 7. Nc3 {[%clk 0:03:01]}  O-O {[%clk 0:02:46]} 8. Be2 {[%clk 0:03:01]}  d6 {[%clk 0:02:44]} 9. f3 {[%clk 0:02:59]}  Bd7 {[%clk 0:02:27]} 10. O-O {[%clk 0:02:58]}  Rc8 {[%clk 0:02:27]} 11. Rc1 {[%clk 0:02:49]}  a6 {[%clk 0:02:16]} 12. Qd2 {[%clk 0:02:48]}  Ne8 {[%clk 0:02:12]} 13. Nc2 {[%clk 0:02:44]}  Nc7 {[%clk 0:02:03]} 14. Bb6 {[%clk 0:02:39]}  Qe8 {[%clk 0:01:48]} 15. Nd5 {[%clk 0:02:34]}  Nxd5 {[%clk 0:01:42]} 16. exd5 {[%clk 0:02:18]}  Ne5 {[%clk 0:01:17]} 17. Ne3 {[%clk 0:02:09]}  f5 {[%clk 0:01:03]} 18. f4 {[%clk 0:02:06]}  Ng4 {[%clk 0:01:03]} 19. Nxg4 {[%clk 0:01:57]}  fxg4 {[%clk 0:01:04]} 20. Rfe1 {[%clk 0:01:51]}  Rf7 {[%clk 0:01:02]} 21. g3 {[%clk 0:01:38]}  Qf8 {[%clk 0:00:49]} 22. b4 {[%clk 0:00:57]}  Bf6 {[%clk 0:00:41]} 23. Be3 {[%clk 0:00:44]}  Qg7 {[%clk 0:00:28]} 24. c5 {[%clk 0:00:38]}  Rff8 {[%clk 0:00:20]} 25. Bf1 {[%clk 0:00:34]}  Kh8 {[%clk 0:00:20]} 26. Bg2 {[%clk 0:00:33]}  a5 {[%clk 0:00:15]} 27. c6 {[%clk 0:00:33]}  bxc6 {[%clk 0:00:14]} 28. dxc6 {[%clk 0:00:34]}  Bf5 {[%clk 0:00:15]} 29. b5 {[%clk 0:00:33]}  e5 {[%clk 0:00:12]} 30. b6 {[%clk 0:00:30]}  exf4 {[%clk 0:00:12]} 31. Bxf4 {[%clk 0:00:28]}  a4 {[%clk 0:00:09]} 32. b7 {[%clk 0:00:27]}  Rb8 {[%clk 0:00:09]} 33. Bxd6 {[%clk 0:00:26]} 1-0


[Site "https://www.chess.com"]

[Event "Titled Tuesday Blitz December 13 Early 2022"]
[White "Roebers, Jan"]
[Black "Molina Carretero, Daniel"]
[WhiteFideId "1007815"]
[BlackFideId "32071914"]
[WhiteElo "2163"]
[BlackElo "2109"]
[Result "1/2-1/2"]
[Round "05"]
[TimeControl "180+1"]
[Date "2022.12.14"]
[WhiteClock "0:00:03"]
[BlackClock "0:00:09"]

1. e4 {[%clk 0:02:58]}  c5 {[%clk 0:02:59]} 2. Nf3 {[%clk 0:02:57]}  d6 {[%clk 0:02:59]} 3. c3 {[%clk 0:02:55]}  Nf6 {[%clk 0:02:59]} 4. Bd3 {[%clk 0:02:53]}  g6 {[%clk 0:02:57]} 5. h3 {[%clk 0:02:51]}  Bg7 {[%clk 0:02:57]} 6. Bc2 {[%clk 0:02:50]}  O-O {[%clk 0:02:55]} 7. O-O {[%clk 0:02:45]}  Nc6 {[%clk 0:02:54]} 8. d4 {[%clk 0:02:44]}  e5 {[%clk 0:02:48]} 9. dxe5 {[%clk 0:02:41]}  dxe5 {[%clk 0:02:47]} 10. Qxd8 {[%clk 0:02:39]}  Rxd8 {[%clk 0:02:48]} 11. Bg5 {[%clk 0:02:37]}  h6 {[%clk 0:02:44]} 12. Bh4 {[%clk 0:02:30]}  Be6 {[%clk 0:02:38]} 13. Nbd2 {[%clk 0:02:26]}  g5 {[%clk 0:02:04]} 14. Bg3 {[%clk 0:02:25]}  Nh5 {[%clk 0:02:04]} 15. Rad1 {[%clk 0:02:13]}  Nf4 {[%clk 0:01:55]} 16. Bxf4 {[%clk 0:02:11]}  exf4 {[%clk 0:01:56]} 17. Bb3 {[%clk 0:02:03]}  b5 {[%clk 0:01:43]} 18. Bxe6 {[%clk 0:02:00]}  fxe6 {[%clk 0:01:44]} 19. Nb3 {[%clk 0:01:56]}  c4 {[%clk 0:01:37]} 20. Nbd4 {[%clk 0:01:53]}  Nxd4 {[%clk 0:01:36]} 21. Nxd4 {[%clk 0:01:51]}  Bxd4 {[%clk 0:01:20]} 22. cxd4 {[%clk 0:01:49]}  Kf7 {[%clk 0:01:20]} 23. d5 {[%clk 0:01:48]}  exd5 {[%clk 0:01:18]} 24. exd5 {[%clk 0:01:47]}  Rd6 {[%clk 0:01:18]} 25. Rfe1 {[%clk 0:01:42]}  Rad8 {[%clk 0:01:11]} 26. a4 {[%clk 0:01:38]}  a6 {[%clk 0:01:07]} 27. axb5 {[%clk 0:01:31]}  axb5 {[%clk 0:01:08]} 28. b3 {[%clk 0:01:25]}  Rxd5 {[%clk 0:01:05]} 29. Rxd5 {[%clk 0:01:22]}  Rxd5 {[%clk 0:01:05]} 30. bxc4 {[%clk 0:01:21]}  bxc4 {[%clk 0:01:06]} 31. Kf1 {[%clk 0:01:20]}  Kf6 {[%clk 0:00:38]} 32. Rc1 {[%clk 0:01:10]}  Rd4 {[%clk 0:00:37]} 33. Ke2 {[%clk 0:01:08]}  Kf5 {[%clk 0:00:36]} 34. f3 {[%clk 0:01:04]}  h5 {[%clk 0:00:36]} 35. Rc2 {[%clk 0:01:02]}  g4 {[%clk 0:00:35]} 36. hxg4+ {[%clk 0:00:58]}  hxg4 {[%clk 0:00:36]} 37. Rc3 {[%clk 0:00:51]}  g3 {[%clk 0:00:36]} 38. Rc2 {[%clk 0:00:47]}  Ke5 {[%clk 0:00:36]} 39. Rc3 {[%clk 0:00:46]}  Kd5 {[%clk 0:00:36]} 40. Ra3 {[%clk 0:00:37]}  Kc5 {[%clk 0:00:35]} 41. Ra8 {[%clk 0:00:29]}  c3 {[%clk 0:00:34]} 42. Rc8+ {[%clk 0:00:24]}  Kb4 {[%clk 0:00:33]} 43. Rb8+ {[%clk 0:00:21]}  Ka3 {[%clk 0:00:33]} 44. Rc8 {[%clk 0:00:18]}  Kb2 {[%clk 0:00:33]} 45. Rb8+ {[%clk 0:00:17]}  Kc1 {[%clk 0:00:33]} 46. Rc8 {[%clk 0:00:15]}  Rd2+ {[%clk 0:00:33]} 47. Ke1 {[%clk 0:00:14]}  c2 {[%clk 0:00:32]} 48. Kf1 {[%clk 0:00:12]}  Kb1 {[%clk 0:00:29]} 49. Rb8+ {[%clk 0:00:12]}  Ka2 {[%clk 0:00:29]} 50. Ra8+ {[%clk 0:00:11]}  Kb3 {[%clk 0:00:29]} 51. Rb8+ {[%clk 0:00:11]}  Ka4 {[%clk 0:00:29]} 52. Ra8+ {[%clk 0:00:09]}  Kb5 {[%clk 0:00:29]} 53. Rb8+ {[%clk 0:00:08]}  Ka6 {[%clk 0:00:28]} 54. Rc8 {[%clk 0:00:02]}  Rd1+ {[%clk 0:00:28]} 55. Ke2 {[%clk 0:00:02]}  c1=Q {[%clk 0:00:29]} 56. Ra8+ {[%clk 0:00:01]}  Kb5 {[%clk 0:00:22]} 57. Rb8+ {[%clk 0:00:01]}  Kc4 {[%clk 0:00:22]} 58. Rc8+ {[%clk 0:00:01]}  Kd5 {[%clk 0:00:20]} 59. Rd8+ {[%clk 0:00:01]}  Ke5 {[%clk 0:00:18]} 60. Re8+ {[%clk 0:00:01]}  Kd4 {[%clk 0:00:18]} 61. Rd8+ {[%clk 0:00:02]}  Kc3 {[%clk 0:00:18]} 62. Rc8+ {[%clk 0:00:02]}  Kb2 {[%clk 0:00:17]} 63. Rb8+ {[%clk 0:00:02]}  Ka2 {[%clk 0:00:17]} 64. Ra8+ {[%clk 0:00:02]}  Kb1 {[%clk 0:00:15]} 65. Rb8+ {[%clk 0:00:02]}  Qb2+ {[%clk 0:00:13]} 66. Rxb2+ {[%clk 0:00:01]}  Kxb2 {[%clk 0:00:14]} 67. Kxd1 {[%clk 0:00:01]}  Kc3 {[%clk 0:00:13]} 68. Ke2 {[%clk 0:00:01]}  Kc2 {[%clk 0:00:13]} 69. Ke1 {[%clk 0:00:02]}  Kd3 {[%clk 0:00:11]} 70. Kd1 {[%clk 0:00:02]}  Ke3 {[%clk 0:00:10]} 71. Ke1 {[%clk 0:00:02]}  Kd3 {[%clk 0:00:10]} 72. Kd1 {[%clk 0:00:03]}  Ke3 {[%clk 0:00:10]} 73. Ke1 {[%clk 0:00:03]}  Kd3 {[%clk 0:00:09]} 1/2-1/2


[Site "https://www.chess.com"]

[Event "Titled Tuesday Blitz December 13 Early 2022"]
[White "Ronka, Erik"]
[Black "Papasimakopoulos, Alexandros"]
[WhiteFideId "505080"]
[BlackFideId "4244125"]
[WhiteElo "2264"]
[BlackElo "2384"]
[Result "0-1"]
[Round "05"]
[TimeControl "180+1"]
[Date "2022.12.14"]
[WhiteClock "0:00:04"]
[BlackClock "0:00:08"]

1. e4 {[%clk 0:03:00]}  e6 {[%clk 0:02:58]} 2. d4 {[%clk 0:03:00]}  d5 {[%clk 0:02:57]} 3. Nd2 {[%clk 0:03:00]}  Nf6 {[%clk 0:02:57]} 4. e5 {[%clk 0:02:59]}  Nfd7 {[%clk 0:02:56]} 5. Bd3 {[%clk 0:02:57]}  c5 {[%clk 0:02:57]} 6. c3 {[%clk 0:02:57]}  Nc6 {[%clk 0:02:58]} 7. Ne2 {[%clk 0:02:57]}  cxd4 {[%clk 0:02:58]} 8. cxd4 {[%clk 0:02:58]}  f6 {[%clk 0:02:58]} 9. exf6 {[%clk 0:02:59]}  Nxf6 {[%clk 0:02:28]} 10. O-O {[%clk 0:02:58]}  Bd6 {[%clk 0:02:27]} 11. Nf3 {[%clk 0:02:57]}  Qc7 {[%clk 0:02:27]} 12. Bg5 {[%clk 0:02:53]}  O-O {[%clk 0:02:27]} 13. Rc1 {[%clk 0:02:54]}  h6 {[%clk 0:02:26]} 14. Bh4 {[%clk 0:02:52]}  Nh5 {[%clk 0:02:26]} 15. Bg3 {[%clk 0:02:47]}  Nxg3 {[%clk 0:02:26]} 16. Nxg3 {[%clk 0:02:44]}  Bd7 {[%clk 0:02:23]} 17. Bb1 {[%clk 0:02:38]}  Be8 {[%clk 0:02:19]} 18. Qd3 {[%clk 0:02:34]}  g5 {[%clk 0:02:19]} 19. Rfe1 {[%clk 0:02:30]}  Rf6 {[%clk 0:02:13]} 20. Ne5 {[%clk 0:02:29]}  Qg7 {[%clk 0:01:22]} 21. Nxc6 {[%clk 0:02:24]}  bxc6 {[%clk 0:01:23]} 22. Qe2 {[%clk 0:02:14]}  Rb8 {[%clk 0:01:12]} 23. b3 {[%clk 0:01:51]}  Rc8 {[%clk 0:01:07]} 24. Bd3 {[%clk 0:01:06]}  Bf7 {[%clk 0:00:58]} 25. Bb5 {[%clk 0:01:01]}  c5 {[%clk 0:00:41]} 26. b4 {[%clk 0:00:30]}  c4 {[%clk 0:00:40]} 27. a3 {[%clk 0:00:31]}  Rf8 {[%clk 0:00:32]} 28. Rf1 {[%clk 0:00:28]}  Rf4 {[%clk 0:00:30]} 29. Bd7 {[%clk 0:00:19]}  Qf6 {[%clk 0:00:19]} 30. Rc2 {[%clk 0:00:16]}  Rxd4 {[%clk 0:00:18]} 31. Nh5 {[%clk 0:00:16]}  Bxh5 {[%clk 0:00:17]} 32. Qxh5 {[%clk 0:00:17]}  Rh4 {[%clk 0:00:17]} 33. Qe2 {[%clk 0:00:10]}  Bxh2+ {[%clk 0:00:17]} 34. Kh1 {[%clk 0:00:11]}  Kf7 {[%clk 0:00:14]} 35. Re1 {[%clk 0:00:04]}  e5 {[%clk 0:00:14]} 36. Bh3 {[%clk 0:00:03]}  h5 {[%clk 0:00:11]} 37. Kxh2 {[%clk 0:00:02]}  g4 {[%clk 0:00:12]} 38. Kg1 {[%clk 0:00:02]}  gxh3 {[%clk 0:00:12]} 39. g3 {[%clk 0:00:03]}  Re4 {[%clk 0:00:11]} 40. Qf1 {[%clk 0:00:03]}  Rxe1 {[%clk 0:00:11]} 41. Qxe1 {[%clk 0:00:04]}  Rd8 {[%clk 0:00:09]} 42. f4 {[%clk 0:00:02]}  exf4 {[%clk 0:00:08]} 43. Rf2 {[%clk 0:00:03]}  f3 {[%clk 0:00:08]} 44. Qf1 {[%clk 0:00:03]}  Qd4 {[%clk 0:00:07]} 45. Kh2 {[%clk 0:00:03]}  Kg6 {[%clk 0:00:07]} 46. Rxf3 {[%clk 0:00:03]}  Re8 {[%clk 0:00:05]} 47. Kxh3 {[%clk 0:00:03]}  Qg4+ {[%clk 0:00:05]} 48. Kg2 {[%clk 0:00:03]}  Re6 {[%clk 0:00:06]} 49. Qf2 {[%clk 0:00:03]}  h4 {[%clk 0:00:05]} 50. Kh2 {[%clk 0:00:02]}  d4 {[%clk 0:00:04]} 51. Kg2 {[%clk 0:00:02]}  d3 {[%clk 0:00:04]} 52. Rf5 {[%clk 0:00:01]}  Qxg3+ {[%clk 0:00:04]} 53. Qxg3+ {[%clk 0:00:02]}  hxg3 {[%clk 0:00:05]} 54. Rf2 {[%clk 0:00:02]}  gxf2 {[%clk 0:00:04]} 55. Kxf2 {[%clk 0:00:03]}  d2 {[%clk 0:00:05]} 56. b5 {[%clk 0:00:03]}  d1=Q {[%clk 0:00:06]} 57. a4 {[%clk 0:00:04]}  Qd3 {[%clk 0:00:06]} 58. a5 {[%clk 0:00:05]}  Re2+ {[%clk 0:00:07]} 59. Kf1 {[%clk 0:00:04]}  Qd1# {[%clk 0:00:08]} 0-1


[Site "https://www.chess.com"]

[Event "Titled Tuesday Blitz December 13 Early 2022"]
[White "Royal, Shreyas"]
[Black "Kazakouski, Valery"]
[WhiteFideId "448869"]
[BlackFideId "13507443"]
[WhiteElo "2563"]
[BlackElo "2762"]
[Result "0-1"]
[Round "05"]
[TimeControl "180+1"]
[Date "2022.12.14"]
[WhiteClock "0:00:34"]
[BlackClock "0:00:10"]

1. e4 {[%clk 0:03:00]}  e5 {[%clk 0:03:00]} 2. Nf3 {[%clk 0:02:58]}  Nc6 {[%clk 0:03:00]} 3. Bc4 {[%clk 0:02:58]}  Nf6 {[%clk 0:03:00]} 4. d3 {[%clk 0:02:58]}  Be7 {[%clk 0:03:00]} 5. Nc3 {[%clk 0:02:56]}  d6 {[%clk 0:03:00]} 6. O-O {[%clk 0:02:56]}  Na5 {[%clk 0:03:00]} 7. Qe2 {[%clk 0:02:44]}  O-O {[%clk 0:02:57]} 8. Rd1 {[%clk 0:02:42]}  c6 {[%clk 0:02:54]} 9. a4 {[%clk 0:02:39]}  Nxc4 {[%clk 0:02:54]} 10. dxc4 {[%clk 0:02:40]}  Qc7 {[%clk 0:02:53]} 11. b3 {[%clk 0:02:39]}  h6 {[%clk 0:02:50]} 12. Ba3 {[%clk 0:02:37]}  Be6 {[%clk 0:02:50]} 13. Nd2 {[%clk 0:02:36]}  Rad8 {[%clk 0:02:33]} 14. Nf1 {[%clk 0:02:35]}  Rfe8 {[%clk 0:02:18]} 15. Ne3 {[%clk 0:02:34]}  Bf8 {[%clk 0:02:15]} 16. Rd2 {[%clk 0:02:19]}  g6 {[%clk 0:02:15]} 17. Rad1 {[%clk 0:02:18]}  Rd7 {[%clk 0:02:16]} 18. Qf3 {[%clk 0:02:17]}  Nh5 {[%clk 0:02:12]} 19. Ncd5 {[%clk 0:02:10]}  Qd8 {[%clk 0:02:10]} 20. g4 {[%clk 0:02:01]}  cxd5 {[%clk 0:02:06]} 21. gxh5 {[%clk 0:01:56]}  dxe4 {[%clk 0:01:55]} 22. Qg2 {[%clk 0:01:56]}  f5 {[%clk 0:01:39]} 23. hxg6 {[%clk 0:01:50]}  Qf6 {[%clk 0:01:22]} 24. Bxd6 {[%clk 0:01:45]}  Rg7 {[%clk 0:01:09]} 25. Kh1 {[%clk 0:01:43]}  f4 {[%clk 0:01:06]} 26. Nd5 {[%clk 0:01:32]}  Qf5 {[%clk 0:00:34]} 27. Bxf8 {[%clk 0:01:15]}  Rxf8 {[%clk 0:00:35]} 28. Rg1 {[%clk 0:01:14]}  Kh8 {[%clk 0:00:22]} 29. Ne7 {[%clk 0:01:11]}  Qh5 {[%clk 0:00:17]} 30. Rd6 {[%clk 0:00:59]}  Bh3 {[%clk 0:00:16]} 31. Qxe4 {[%clk 0:00:58]}  Rxe7 {[%clk 0:00:15]} 32. Rd5 {[%clk 0:00:43]}  Bg4 {[%clk 0:00:14]} 33. Rd3 {[%clk 0:00:40]}  Bf5 {[%clk 0:00:13]} 34. g7+ {[%clk 0:00:38]}  Rxg7 {[%clk 0:00:13]} 35. Qxe5 {[%clk 0:00:38]}  Rg8 {[%clk 0:00:12]} 36. Rd8 {[%clk 0:00:36]}  Be4+ {[%clk 0:00:11]} 37. Rg2 {[%clk 0:00:34]}  Bxg2+ {[%clk 0:00:10]} 0-1


[Site "https://www.chess.com"]

[Event "Titled Tuesday Blitz December 13 Early 2022"]
[White "Sadubayev, Airat"]
[Black "Aggelis, Nikolaos"]
[WhiteFideId "13713264"]
[BlackFideId "4213220"]
[WhiteElo "2160"]
[BlackElo "2189"]
[Result "0-1"]
[Round "05"]
[TimeControl "180+1"]
[Date "2022.12.14"]
[WhiteClock "0:00:04"]
[BlackClock "0:00:19"]

1. d4 {[%clk 0:02:59]}  e6 {[%clk 0:02:51]} 2. c4 {[%clk 0:02:59]}  Nf6 {[%clk 0:02:44]} 3. Nf3 {[%clk 0:02:58]}  g6 {[%clk 0:02:39]} 4. Nc3 {[%clk 0:02:56]}  Bg7 {[%clk 0:02:40]} 5. e4 {[%clk 0:02:53]}  d5 {[%clk 0:02:40]} 6. e5 {[%clk 0:02:49]}  Ne4 {[%clk 0:02:40]} 7. Nxe4 {[%clk 0:02:36]}  dxe4 {[%clk 0:02:41]} 8. Ng5 {[%clk 0:02:36]}  c5 {[%clk 0:02:36]} 9. Nxe4 {[%clk 0:02:35]}  Qxd4 {[%clk 0:02:33]} 10. Nd6+ {[%clk 0:02:30]}  Ke7 {[%clk 0:02:33]} 11. Qxd4 {[%clk 0:02:24]}  cxd4 {[%clk 0:02:33]} 12. f4 {[%clk 0:02:23]}  Nc6 {[%clk 0:02:29]} 13. b3 {[%clk 0:02:14]}  Nb4 {[%clk 0:02:13]} 14. Kd1 {[%clk 0:02:09]}  f6 {[%clk 0:02:13]} 15. Ba3 {[%clk 0:02:05]}  a5 {[%clk 0:02:13]} 16. Nxc8+ {[%clk 0:01:49]}  Rhxc8 {[%clk 0:02:11]} 17. exf6+ {[%clk 0:01:50]}  Bxf6 {[%clk 0:02:10]} 18. Bd3 {[%clk 0:01:49]}  e5 {[%clk 0:02:07]} 19. Re1 {[%clk 0:01:46]}  Kd6 {[%clk 0:02:06]} 20. fxe5+ {[%clk 0:01:39]}  Bxe5 {[%clk 0:02:07]} 21. g3 {[%clk 0:01:37]}  Re8 {[%clk 0:01:54]} 22. Kd2 {[%clk 0:01:35]}  Bf6 {[%clk 0:01:50]} 23. Rxe8 {[%clk 0:01:17]}  Rxe8 {[%clk 0:01:51]} 24. Re1 {[%clk 0:01:14]}  Bg5+ {[%clk 0:01:50]} 25. Kd1 {[%clk 0:01:14]}  Rxe1+ {[%clk 0:01:33]} 26. Kxe1 {[%clk 0:01:15]}  Bc1 {[%clk 0:01:34]} 27. Bxb4+ {[%clk 0:00:42]}  axb4 {[%clk 0:01:34]} 28. Ke2 {[%clk 0:00:42]}  b6 {[%clk 0:01:25]} 29. Kf3 {[%clk 0:00:41]}  Ke5 {[%clk 0:01:25]} 30. Kg4 {[%clk 0:00:38]}  Kf6 {[%clk 0:01:17]} 31. h4 {[%clk 0:00:37]}  Bd2 {[%clk 0:01:13]} 32. Kf3 {[%clk 0:00:35]}  Ke5 {[%clk 0:01:12]} 33. Kg4 {[%clk 0:00:33]}  Kf6 {[%clk 0:01:12]} 34. h5 {[%clk 0:00:33]}  gxh5+ {[%clk 0:01:11]} 35. Kxh5 {[%clk 0:00:33]}  h6 {[%clk 0:01:12]} 36. Kg4 {[%clk 0:00:32]}  Bc1 {[%clk 0:01:09]} 37. Bb1 {[%clk 0:00:30]}  Bd2 {[%clk 0:01:09]} 38. Kf3 {[%clk 0:00:30]}  Ke5 {[%clk 0:01:08]} 39. Bd3 {[%clk 0:00:30]}  Bc1 {[%clk 0:01:07]} 40. Kg2 {[%clk 0:00:29]}  Bd2 {[%clk 0:01:05]} 41. Kh3 {[%clk 0:00:29]}  Be1 {[%clk 0:01:02]} 42. Kg4 {[%clk 0:00:30]}  Bd2 {[%clk 0:01:01]} 43. Kh5 {[%clk 0:00:31]}  Kf6 {[%clk 0:00:57]} 44. Kh4 {[%clk 0:00:31]}  Bc1 {[%clk 0:00:55]} 45. Kg4 {[%clk 0:00:30]}  Bd2 {[%clk 0:00:54]} 46. Kf3 {[%clk 0:00:31]}  Ke5 {[%clk 0:00:54]} 47. Bh7 {[%clk 0:00:30]}  Bc1 {[%clk 0:00:51]} 48. Ke2 {[%clk 0:00:30]}  Be3 {[%clk 0:00:49]} 49. Bg8 {[%clk 0:00:28]}  Bc1 {[%clk 0:00:48]} 50. Kd3 {[%clk 0:00:28]}  Be3 {[%clk 0:00:46]} 51. Bd5 {[%clk 0:00:23]}  Bf2 {[%clk 0:00:39]} 52. g4 {[%clk 0:00:23]}  Kf4 {[%clk 0:00:39]} 53. Be6 {[%clk 0:00:23]}  Ke5 {[%clk 0:00:37]} 54. Bc8 {[%clk 0:00:23]}  Bg1 {[%clk 0:00:36]} 55. Ke2 {[%clk 0:00:23]}  Be3 {[%clk 0:00:36]} 56. Kf3 {[%clk 0:00:23]}  Bg5 {[%clk 0:00:35]} 57. Bf5 {[%clk 0:00:22]}  Bc1 {[%clk 0:00:34]} 58. Bd3 {[%clk 0:00:22]}  Bg5 {[%clk 0:00:34]} 59. Kg3 {[%clk 0:00:22]}  Bf4+ {[%clk 0:00:34]} 60. Kg2 {[%clk 0:00:22]}  Bg5 {[%clk 0:00:34]} 61. Kf3 {[%clk 0:00:23]}  Bc1 {[%clk 0:00:34]} 62. Bg6 {[%clk 0:00:23]}  Bg5 {[%clk 0:00:34]} 63. Ke2 {[%clk 0:00:23]}  Kf4 {[%clk 0:00:32]} 64. Bh5 {[%clk 0:00:23]}  Ke4 {[%clk 0:00:32]} 65. Be8 {[%clk 0:00:22]}  d3+ {[%clk 0:00:31]} 66. Kd1 {[%clk 0:00:23]}  Kd4 {[%clk 0:00:31]} 67. Bg6 {[%clk 0:00:21]}  Kc3 {[%clk 0:00:32]} 68. Bf5 {[%clk 0:00:19]}  d2 {[%clk 0:00:32]} 69. Be6 {[%clk 0:00:19]}  Kb2 {[%clk 0:00:32]} 70. c5 {[%clk 0:00:19]}  bxc5 {[%clk 0:00:32]} 71. Bc4 {[%clk 0:00:19]}  Kxa2 {[%clk 0:00:32]} 72. Be6 {[%clk 0:00:19]}  Kb2 {[%clk 0:00:32]} 73. Bc4 {[%clk 0:00:20]}  Kc3 {[%clk 0:00:33]} 74. Be6 {[%clk 0:00:20]}  Kd3 {[%clk 0:00:32]} 75. Bc4+ {[%clk 0:00:20]}  Ke3 {[%clk 0:00:32]} 76. Be6 {[%clk 0:00:20]}  Bf6 {[%clk 0:00:33]} 77. Bc4 {[%clk 0:00:19]}  Bc3 {[%clk 0:00:34]} 78. Be2 {[%clk 0:00:19]}  Kf4 {[%clk 0:00:32]} 79. Kc2 {[%clk 0:00:19]}  Kg3 {[%clk 0:00:30]} 80. Kd1 {[%clk 0:00:18]}  Kf2 {[%clk 0:00:31]} 81. Bc4 {[%clk 0:00:18]}  Ke3 {[%clk 0:00:31]} 82. Be2 {[%clk 0:00:17]}  Ke4 {[%clk 0:00:29]} 83. Kc2 {[%clk 0:00:16]}  Kf4 {[%clk 0:00:27]} 84. Kd1 {[%clk 0:00:16]}  Ke3 {[%clk 0:00:25]} 85. Bc4 {[%clk 0:00:16]}  Be5 {[%clk 0:00:23]} 86. Be2 {[%clk 0:00:16]}  Bb2 {[%clk 0:00:23]} 87. Bc4 {[%clk 0:00:16]}  Bf6 {[%clk 0:00:22]} 88. Be2 {[%clk 0:00:17]}  Bg5 {[%clk 0:00:23]} 89. Bc4 {[%clk 0:00:17]}  Kf3 {[%clk 0:00:23]} 90. Be2+ {[%clk 0:00:17]}  Kf2 {[%clk 0:00:24]} 91. Bc4 {[%clk 0:00:17]}  Kg3 {[%clk 0:00:23]} 92. Be2 {[%clk 0:00:18]}  c4 {[%clk 0:00:21]} 93. bxc4 {[%clk 0:00:13]}  b3 {[%clk 0:00:22]} 94. c5 {[%clk 0:00:12]}  b2 {[%clk 0:00:19]} 95. Bd3 {[%clk 0:00:06]}  Kxg4 {[%clk 0:00:18]} 96. c6 {[%clk 0:00:06]}  Bf4 {[%clk 0:00:17]} 97. c7 {[%clk 0:00:07]}  Bxc7 {[%clk 0:00:16]} 98. Kxd2 {[%clk 0:00:07]}  Be5 {[%clk 0:00:16]} 99. Ke2 {[%clk 0:00:08]}  Kg3 {[%clk 0:00:17]} 100. Kf1 {[%clk 0:00:08]}  Bd4 {[%clk 0:00:17]} 101. Ke2 {[%clk 0:00:03]}  h5 {[%clk 0:00:17]} 102. Kd1 {[%clk 0:00:03]}  h4 {[%clk 0:00:17]} 103. Kc2 {[%clk 0:00:04]}  h3 {[%clk 0:00:18]} 104. Be4 {[%clk 0:00:05]}  h2 {[%clk 0:00:18]} 105. Kb1 {[%clk 0:00:03]}  Kf2 {[%clk 0:00:19]} 106. Kc2 {[%clk 0:00:04]}  Kg1 {[%clk 0:00:19]} 0-1


[Site "https://www.chess.com"]

[Event "Titled Tuesday Blitz December 13 Early 2022"]
[White "Sai Han Thiha"]
[Black "Haddouche, Mohamed"]
[WhiteFideId "13012290"]
[BlackFideId "7900660"]
[WhiteElo "1954"]
[BlackElo "2443"]
[Result "0-1"]
[Round "05"]
[TimeControl "180+1"]
[Date "2022.12.14"]
[WhiteClock "0:00:02"]
[BlackClock "0:00:20"]

1. d4 {[%clk 0:03:00]}  Nf6 {[%clk 0:02:58]} 2. c4 {[%clk 0:03:01]}  g6 {[%clk 0:02:58]} 3. Nc3 {[%clk 0:02:59]}  Bg7 {[%clk 0:02:58]} 4. e4 {[%clk 0:02:56]}  d6 {[%clk 0:02:58]} 5. Nf3 {[%clk 0:02:56]}  O-O {[%clk 0:02:56]} 6. Be2 {[%clk 0:02:56]}  Nbd7 {[%clk 0:02:56]} 7. Be3 {[%clk 0:02:23]}  e5 {[%clk 0:02:55]} 8. d5 {[%clk 0:02:24]}  Qe7 {[%clk 0:02:54]} 9. Nd2 {[%clk 0:02:23]}  c5 {[%clk 0:02:54]} 10. g4 {[%clk 0:02:22]}  Nb6 {[%clk 0:02:45]} 11. h4 {[%clk 0:02:08]}  Ne8 {[%clk 0:02:23]} 12. h5 {[%clk 0:02:02]}  Bf6 {[%clk 0:02:22]} 13. Nf1 {[%clk 0:01:54]}  Bg5 {[%clk 0:02:12]} 14. Qd2 {[%clk 0:01:54]}  Bxe3 {[%clk 0:02:08]} 15. Qxe3 {[%clk 0:01:54]}  Qf6 {[%clk 0:02:08]} 16. Qh3 {[%clk 0:01:41]}  Qg7 {[%clk 0:01:44]} 17. Ne3 {[%clk 0:01:34]}  Qh6 {[%clk 0:01:40]} 18. Qh4 {[%clk 0:01:29]}  f6 {[%clk 0:01:23]} 19. O-O-O {[%clk 0:01:05]}  g5 {[%clk 0:00:57]} 20. Qg3 {[%clk 0:01:04]}  Qg7 {[%clk 0:00:57]} 21. h6 {[%clk 0:01:03]}  Qc7 {[%clk 0:00:56]} 22. Rdg1 {[%clk 0:00:32]}  Bd7 {[%clk 0:00:55]} 23. Nf5 {[%clk 0:00:29]}  Qd8 {[%clk 0:00:51]} 24. Bd3 {[%clk 0:00:24]}  Na4 {[%clk 0:00:49]} 25. Nd1 {[%clk 0:00:17]}  b5 {[%clk 0:00:48]} 26. cxb5 {[%clk 0:00:13]}  c4 {[%clk 0:00:48]} 27. Bxc4 {[%clk 0:00:10]}  Rc8 {[%clk 0:00:48]} 28. b3 {[%clk 0:00:10]}  Nb6 {[%clk 0:00:48]} 29. Nfe3 {[%clk 0:00:08]}  Bxb5 {[%clk 0:00:47]} 30. Nb2 {[%clk 0:00:07]}  a5 {[%clk 0:00:41]} 31. Kb1 {[%clk 0:00:07]}  Nc7 {[%clk 0:00:41]} 32. Rc1 {[%clk 0:00:06]}  Qd7 {[%clk 0:00:41]} 33. a4 {[%clk 0:00:06]}  Ba6 {[%clk 0:00:38]} 34. Qf3 {[%clk 0:00:04]}  Kf7 {[%clk 0:00:36]} 35. Rc2 {[%clk 0:00:04]}  Bxc4 {[%clk 0:00:32]} 36. Nexc4 {[%clk 0:00:04]}  Nxc4 {[%clk 0:00:32]} 37. Nxc4 {[%clk 0:00:05]}  Na6 {[%clk 0:00:33]} 38. Rc3 {[%clk 0:00:04]}  Nb4 {[%clk 0:00:30]} 39. Qd3 {[%clk 0:00:04]}  Nxd3 {[%clk 0:00:25]} 40. Rxd3 {[%clk 0:00:04]}  Rxc4 {[%clk 0:00:25]} 41. bxc4 {[%clk 0:00:04]}  Rb8+ {[%clk 0:00:25]} 42. Kc2 {[%clk 0:00:04]}  Qb7 {[%clk 0:00:26]} 43. Rc3 {[%clk 0:00:04]}  Qb2+ {[%clk 0:00:25]} 44. Kd3 {[%clk 0:00:04]}  Qxf2 {[%clk 0:00:25]} 45. c5 {[%clk 0:00:03]}  dxc5 {[%clk 0:00:21]} 46. Rhc1 {[%clk 0:00:02]}  Rb2 {[%clk 0:00:20]} 0-1


[Site "https://www.chess.com"]